bitfinex/quotes_ETHUSD_20250904
["timestamp","ask_amount","ask_price","bid_price","bid_amount"]
[1757006345036,5.599,4316.9,4316.8,9.55558074]
[1757006346276,3.892,4316.9,4316.8,9.55558074]
[1757006347376,1.707,4317.6,4317.5,2.31615518]
[1757006347538,5.598,4317.6,4317.5,4.01969335]
[1757006348755,5.598,4317.6,4317.5,9.88961332]
[1757006348952,3.891,4317.6,4317.5,9.88961332]
[1757006349153,0.001,4318.2,4317.5,7.57345814]
[1757006349393,0.001,4318.2,4318.1,8.18575332]
[1757006349849,0.001,4318.2,4318.1,12.38995332]
[1757006350050,0.001,4318.2,4318.1,19.28608734]
[1757006351387,0.001,4318.2,4318.1,25.15600731]
[1757006351589,0.001,4318.2,4318.1,19.28608734]
[1757006351874,0.001,4318.2,4318.1,21.55399531]
[1757006353590,0.001,4318.2,4318.1,21.66999531]
[1757006353991,0.001,4318.2,4318.1,27.53991528]
[1757006354292,0.001,4318.7,4318.6,11.18548519]
[1757006354474,0.001,4318.7,4318.6,20.94540516]
[1757006354681,0.001,4318.7,4318.6,24.09425931]
[1757006354878,0.001,4318.7,4318.6,30.29425931]
[1757006355553,0.001,4319.2,4319.0,11.18527074]
[1757006355754,0.001,4319.2,4319.0,15.07527074]
[1757006355956,0.001,4319.2,4319.0,16.39547074]
[1757006356298,0.001,4319.2,4319.0,23.05870891]
[1757006357982,0.001,4319.2,4319.0,23.75467013]
[1757006358898,0.001,4319.2,4319.0,23.96780757]
[1757006359599,0.001,4319.2,4319.0,23.96772433]
[1757006361111,0.001,4319.2,4319.0,28.17772432]
[1757006361880,0.001,4319.2,4319.0,23.39102432]
[1757006362204,0.001,4319.2,4319.0,22.6950631]
[1757006362375,0.001,4319.2,4319.0,23.1292631]
[1757006363401,0.001,4319.2,4319.0,23.5917631]
[1757006365014,0.001,4319.2,4319.0,24.28772271]
[1757006366591,0.001,4319.2,4319.0,20.07772272]
[1757006367911,0.001,4319.2,4319.0,23.96572272]
[1757006371513,0.001,4319.7,4319.2,2.31524356]
[1757006371701,0.001,4319.7,4319.6,9.17741997]
[1757006372011,0.001,4319.7,4319.6,15.70995645]
[1757006372210,0.001,4319.7,4319.6,22.89943837]
[1757006374915,0.001,4319.7,4319.6,22.43739226]
[1757006375494,0.001,4319.7,4319.6,22.00319226]
[1757006375700,0.1,4319.7,4319.6,11.93777229]
[1757006376217,0.1,4319.7,4319.6,17.80769226]
[1757006376419,0.1,4319.7,4319.6,11.60769226]
[1757006377919,0.553,4319.7,4319.6,11.49169226]
[1757006378141,0.1,4319.7,4319.6,11.49169226]
[1757006378333,0.1,4319.7,4319.6,11.39891034]
[1757006380617,0.001,4319.7,4319.6,11.39891034]
[1757006381016,0.001,4319.7,4319.6,5.83919037]
[1757006381235,0.001,4319.7,4319.6,11.39891034]
[1757006381427,0.001,4319.7,4319.6,17.59891034]
[1757006382756,0.1,4319.7,4319.6,8.72899037]
[1757006383468,0.8384,4319.7,4319.6,0.21396121]
[1757006383763,4.8404,4319.7,4319.6,0.21396121]
[1757006383961,5.55612528,4319.7,4319.2,2.31520797]
[1757006384122,2.4444,4319.6,4319.2,2.31520797]
[1757006384322,0.1007,4319.3,4319.2,2.31520797]
[1757006385427,0.1007,4319.3,4318.9,0.116]
[1757006385428,0.5679,4319.3,4319.1,2.31527975]
[1757006385653,0.1007,4319.3,4319.2,2.31524356]
[1757006385835,0.1007,4319.3,4318.9,2.43140161]
[1757006385836,0.1007,4319.3,4319.0,2.31532623]
[1757006386252,0.4672,4319.2,4318.9,0.116]
[1757006386452,0.3134,4319.0,4318.8,2.31944316]
[1757006386623,0.4672,4318.9,4318.8,2.31944316]
[1757006386833,0.7781,4318.9,4318.8,2.31944316]
[1757006387051,0.7781,4318.9,4318.8,0.004]
[1757006387234,4.7255,4318.9,4318.8,0.004]
[1757006387445,5.44117834,4318.9,4318.8,0.004]
[1757006387763,4.6641,4318.9,4318.8,0.004]
[1757006388127,4.1969,4318.9,4318.8,2.31945799]
[1757006388525,3.886,4318.9,4318.8,2.62965799]
[1757006388725,4.002,4318.9,4318.8,3.06075799]
[1757006389254,4.002,4318.9,4318.8,2.62965799]
[1757006390330,4.002,4318.9,4318.8,2.31945799]
[1757006390738,0.116,4318.9,4318.8,2.62965799]
[1757006391029,0.116,4319.1,4319.0,2.31531465]
[1757006391236,4.002,4319.1,4319.0,2.31531465]
[1757006391840,4.101,4319.1,4318.9,2.31538739]
[1757006392048,0.4672,4319.0,4318.8,2.31945346]
[1757006392257,0.1007,4318.9,4318.8,2.31945346]
[1757006393944,4.002,4319.1,4319.0,2.31535077]
[1757006394149,4.101,4319.1,4319.0,2.31535077]
[1757006394562,0.001,4319.2,4319.1,2.31529716]
[1757006394727,0.001,4319.2,4319.1,13.1014011]
[1757006394930,0.001,4319.2,4319.1,14.3383011]
[1757006395129,0.001,4319.2,4319.1,17.3383011]
[1757006395340,0.001,4319.2,4319.1,19.60620907]
[1757006397534,0.001,4319.2,4319.1,24.87950907]
[1757006397734,0.001,4319.2,4319.1,25.80620907]
[1757006398640,0.001,4319.2,4319.1,21.92020907]
[1757006400941,0.001,4319.2,4319.1,26.13020906]
[1757006404679,0.001,4319.2,4319.1,30.01620906]
[1757006405951,0.001,4319.2,4319.1,29.52060906]
[1757006406189,0.001,4319.2,4319.1,22.62050512]
[1757006406481,0.001,4319.2,4319.1,22.61950512]
[1757006406651,0.001,4319.2,4319.1,21.87820512]
[1757006406851,0.1,4319.2,4319.1,17.99320512]
[1757006407771,0.1,4319.2,4319.1,7.58320513]
[1757006407971,0.1,4319.2,4319.1,2.31529716]
[1757006407972,0.5672,4319.2,4319.1,2.31529716]
[1757006408160,0.8384,4319.2,4319.1,0.004]
[1757006410670,0.5672,4319.2,4319.1,2.31929716]
[1757006411079,0.1,4319.2,4319.1,2.31929716]
[1757006413761,0.1,4319.2,4319.1,3.04369716]
[1757006413762,0.001,4319.2,4319.1,3.04369716]
[1757006414088,0.001,4319.2,4319.1,10.93371631]
[1757006415480,0.001,4319.2,4319.1,10.03181631]
[1757006415877,0.001,4319.2,4319.1,10.47001631]
[1757006416292,0.001,4319.2,4319.1,10.93371631]
[1757006417079,0.001,4319.2,4319.1,11.61871631]
[1757006417563,0.001,4319.2,4319.1,17.81871631]
[1757006419367,0.001,4319.2,4319.1,15.40429716]
[1757006419568,0.001,4319.2,4319.1,5.31929716]
[1757006419766,0.1,4319.2,4319.1,5.31929716]
[1757006419996,0.1,4319.2,4319.1,11.51929716]
[1757006420569,0.1,4319.2,4319.1,5.31929716]
[1757006423706,0.597,4319.2,4319.1,5.31929716]
[1757006423902,0.597,4319.2,4319.1,2.31929716]
[1757006424291,0.1,4319.2,4319.1,2.31929716]
[1757006424495,0.001,4319.2,4319.1,2.31929716]
[1757006424882,0.001,4319.2,4319.1,0.004]
[1757006424883,0.5987,4319.2,4319.1,0.004]
[1757006425202,0.001,4319.2,4319.1,2.31929716]
[1757006425405,0.001,4319.2,4319.1,3.04369716]
[1757006427024,0.001,4319.2,4319.1,5.27071769]
[1757006427825,0.001,4319.2,4319.1,11.47071769]
[1757006430105,0.001,4319.2,4319.1,11.00701769]
[1757006431192,0.001,4319.2,4319.1,14.47071769]
[1757006431437,0.001,4319.2,4319.1,18.68071768]
[1757006443232,0.001,4319.2,4319.1,18.21701768]
[1757006445256,0.001,4319.2,4319.1,18.71471768]
[1757006446452,0.001,4319.2,4319.1,21.66181768]
[1757006446656,0.001,4319.2,4319.1,22.12871768]
[1757006447451,0.001,4319.2,4319.1,27.98884842]
[1757006448866,0.466,4320.0,4319.1,27.98884842]
[1757006448867,0.2729,4322.4,4320.7,2.31443978]
[1757006449055,0.465,4321.5,4320.7,12.05757052]
[1757006449368,0.465,4322.1,4321.7,2.31390425]
[1757006449568,1.522,4322.5,4321.7,21.47170977]
[1757006449868,1.522,4322.5,4321.7,21.58770977]
[1757006449869,0.581,4322.4,4321.7,21.58770977]
[1757006450633,0.581,4322.4,4321.7,23.66120647]
[1757006450837,0.025,4322.8,4321.7,23.66120647]
[1757006450838,0.025,4322.8,4322.7,2.31336895]
[1757006451034,0.025,4322.8,4322.7,2.52804373]
[1757006451253,0.124,4322.8,4322.7,2.52804373]
[1757006451452,0.589,4322.8,4322.7,2.52804373]
[1757006452248,0.124,4322.8,4322.7,2.31336895]
[1757006452454,0.124,4322.8,4322.7,2.52804373]
[1757006452855,0.8602,4322.8,4322.7,2.52804373]
[1757006453255,0.589,4322.8,4322.7,2.31336895]
[1757006453568,0.589,4322.8,4322.7,2.52804373]
[1757006453784,0.589,4322.8,4322.7,2.31336895]
[1757006453785,0.8602,4322.8,4322.7,2.31336895]
[1757006454653,0.589,4322.8,4322.7,2.31336895]
[1757006455367,0.589,4322.8,4322.7,2.52804373]
[1757006455569,0.589,4322.8,4322.7,0.21467478]
[1757006455776,0.8602,4322.8,4322.7,0.21467478]
[1757006456083,0.8602,4322.8,4322.7,2.52804373]
[1757006456568,0.589,4322.8,4322.7,2.52804373]
[1757006457382,0.589,4322.8,4322.7,2.31336895]
[1757006460284,0.025,4322.8,4322.7,2.31336895]
[1757006460487,0.124,4322.8,4322.7,2.31336895]
[1757006460658,0.025,4322.8,4322.7,17.41240041]
[1757006460857,0.025,4322.8,4322.7,17.85616673]
[1757006461077,0.025,4322.8,4322.7,12.11203599]
[1757006461398,0.026,4322.8,4322.7,17.97206955]
[1757006461856,0.026,4322.8,4322.7,7.26633881]
[1757006462059,0.3413,4322.8,4322.7,9.52780119]
[1757006462568,0.3413,4322.8,4322.7,5.64280119]
[1757006463087,0.026,4322.8,4322.7,5.52680119]
[1757006463793,0.026,4322.8,4322.7,5.52660094]
[1757006464898,0.3413,4322.8,4322.7,5.52660094]
[1757006465395,0.026,4322.8,4322.7,5.52660094]
[1757006465993,0.3387,4322.8,4322.7,5.52660094]
[1757006466401,0.026,4322.8,4322.7,5.52660094]
[1757006468411,0.026,4322.8,4322.7,5.82090094]
[1757006468714,0.026,4322.8,4322.7,5.52660094]
[1757006470167,0.125,4322.8,4322.7,5.52660094]
[1757006470873,0.125,4322.8,4322.7,2.52660094]
[1757006471072,0.026,4322.8,4322.7,2.52660094]
[1757006471309,0.026,4322.8,4322.7,2.82750094]
[1757006471681,0.026,4322.8,4322.7,2.82757381]
[1757006471876,0.026,4322.8,4322.7,2.52667381]
[1757006472710,0.026,4322.8,4322.7,2.52674267]
[1757006473800,0.026,4322.8,4322.7,6.73514267]
[1757006474107,0.026,4322.8,4322.7,12.99905064]
[1757006474788,0.001,4323.3,4323.2,2.3131014]
[1757006474988,0.001,4323.3,4323.2,12.26860586]
[1757006475232,0.001,4323.3,4323.2,12.68550586]
[1757006475537,0.001,4323.3,4323.2,13.59300586]
[1757006475738,0.001,4323.3,4323.2,14.30165604]
[1757006477121,0.001,4323.3,4323.2,17.30165604]
[1757006477515,0.001,4323.3,4323.2,23.50165604]
[1757006478705,0.001,4323.3,4323.2,19.62039641]
[1757006478907,0.001,4323.3,4323.2,23.50139641]
[1757006480707,0.001,4323.3,4323.2,19.62039641]
[1757006480911,0.001,4323.3,4323.2,23.50039641]
[1757006481135,0.001,4323.3,4323.2,19.62039641]
[1757006481433,0.001,4323.3,4323.2,23.50039641]
[1757006482703,0.001,4323.3,4323.2,27.7103964]
[1757006484339,0.001,4323.3,4323.2,23.8303964]
[1757006484513,0.001,4323.3,4323.2,27.2575964]
[1757006485404,0.001,4323.3,4323.2,22.6219964]
[1757006485604,0.001,4323.3,4323.2,26.28788231]
[1757006485914,0.001,4323.3,4323.2,26.50229007]
[1757006486228,0.001,4323.3,4323.2,27.25789007]
[1757006487115,0.1,4323.3,4323.2,26.50229007]
[1757006487313,0.001,4323.3,4323.2,26.50229007]
[1757006487621,0.001,4323.3,4323.2,27.25789007]
[1757006488143,0.001,4323.3,4323.2,22.62229007]
[1757006488442,0.001,4323.3,4323.2,26.50229007]
[1757006488641,0.001,4323.3,4323.2,22.29229008]
[1757006488817,0.001,4323.3,4323.2,23.04789008]
[1757006489346,0.001,4323.3,4323.2,23.04782562]
[1757006490520,0.1,4323.3,4323.2,16.31609488]
[1757006490718,0.8536,4323.3,4323.2,12.6064447]
[1757006490944,0.8536,4323.3,4323.2,2.5274447]
[1757006491153,0.8536,4323.3,4323.2,0.2143433]
[1757006491154,0.5824,4323.3,4323.2,0.2143433]
[1757006491318,0.9696,4323.3,4323.2,0.2143433]
[1757006491518,0.6984,4323.3,4323.1,2.31314991]
[1757006491743,0.4824,4323.2,4323.0,2.31319189]
[1757006491944,0.5831,4323.1,4323.0,2.31319189]
[1757006492117,0.1007,4323.1,4323.0,2.31319189]
[1757006492449,0.001,4323.3,4323.2,2.3131014]
[1757006492956,0.216,4323.3,4323.2,2.3131014]
[1757006493321,0.117,4323.3,4323.2,8.17323214]
[1757006493523,0.216,4323.3,4323.2,8.17323214]
[1757006493748,0.117,4323.3,4323.2,8.17323214]
[1757006493920,0.117,4323.3,4323.2,8.47413214]
[1757006494117,0.117,4323.3,4323.2,14.34136454]
[1757006494118,0.001,4323.3,4323.2,14.34136454]
[1757006494352,0.001,4323.3,4323.2,14.45736454]
[1757006494663,0.001,4323.3,4323.2,13.24896454]
[1757006494850,0.001,4323.3,4323.2,20.20456454]
[1757006496036,0.001,4323.3,4323.2,23.20456454]
[1757006496440,0.001,4323.3,4323.2,18.86886454]
[1757006496741,0.001,4323.3,4323.2,22.44896454]
[1757006497240,0.001,4323.3,4323.2,22.74986454]
[1757006498348,0.001,4323.3,4323.2,23.20456454]
[1757006498535,0.5824,4323.3,4323.2,15.3941014]
[1757006498734,0.5824,4323.3,4323.2,8.5131014]
[1757006498937,0.1017,4323.3,4323.2,8.5131014]
[1757006499136,0.001,4323.3,4323.2,16.6117014]
[1757006499359,0.001,4323.3,4323.2,18.99560937]
[1757006499653,0.001,4323.3,4323.2,18.51110937]
[1757006500027,0.001,4323.3,4323.2,23.65114011]
[1757006500248,0.001,4323.3,4323.2,24.75374011]
[1757006500554,0.001,4323.3,4323.2,24.86974011]
[1757006501917,0.1,4323.3,4323.2,11.6291014]
[1757006502168,0.001,4323.3,4323.2,16.2592014]
[1757006502732,0.1,4323.3,4323.2,17.37323214]
[1757006502944,0.1,4323.3,4323.2,21.26823214]
[1757006503345,0.1,4323.3,4323.2,15.06823214]
[1757006503534,0.1,4323.3,4323.2,6.2081014]
[1757006503844,0.8611,4323.3,4322.9,2.42926029]
[1757006504158,0.7611,4323.2,4322.9,2.42926029]
[1757006504459,0.4184,4323.0,4322.8,0.004]
[1757006504758,0.4184,4323.0,4322.8,2.31730177]
[1757006504963,0.4184,4323.0,4322.8,0.004]
[1757006505141,0.5597,4322.9,4322.8,0.004]
[1757006505464,0.5597,4322.9,4322.8,2.31731544]
[1757006505650,0.8598,4322.9,4322.8,0.004]
[1757006506262,0.79,4322.9,4322.8,0.004]
[1757006506458,0.79,4322.9,4322.8,2.31731544]
[1757006506859,0.79,4322.9,4322.8,0.004]
[1757006507167,0.79,4322.9,4322.8,2.31731544]
[1757006507464,0.79,4322.9,4322.8,0.004]
[1757006507768,0.79,4322.9,4322.8,2.31731544]
[1757006508131,0.79,4322.9,4322.8,0.004]
[1757006508132,0.8621,4322.9,4322.8,0.004]
[1757006509130,0.8621,4322.9,4322.8,2.31731544]
[1757006509464,0.8621,4322.9,4322.8,0.004]
[1757006509762,3.07665137,4322.9,4322.8,0.004]
[1757006510140,2.98131,4322.9,4322.8,2.31731544]
[1757006510448,6.504,4322.9,4322.8,2.31731544]
[1757006510649,6.0141,4322.9,4322.8,2.31731544]
[1757006513656,1.82,4322.9,4322.8,2.60691544]
[1757006513835,0.116,4322.9,4322.8,4.0279472]
[1757006514463,0.001,4323.3,4323.2,2.3131014]
[1757006514960,0.001,4323.3,4323.2,9.7317014]
[1757006515155,0.001,4323.3,4323.2,12.20832053]
[1757006515546,0.001,4323.3,4323.2,15.20832053]
[1757006515871,0.001,4323.3,4323.2,15.09232053]
[1757006516568,0.001,4323.3,4323.2,15.20832053]
[1757006517387,0.001,4323.3,4323.2,19.10732053]
[1757006518647,0.001,4323.3,4323.2,18.17832053]
[1757006518851,0.1,4323.3,4323.2,11.72181256]
[1757006519051,0.1,4323.3,4323.2,11.5131014]
[1757006519387,0.1,4323.3,4323.2,8.5131014]
[1757006519985,0.001,4323.3,4323.2,2.3131014]
[1757006520774,0.001,4323.3,4323.2,3.0472014]
[1757006521456,0.001,4323.3,4323.2,2.3131014]
[1757006522377,0.1,4323.3,4323.2,2.3131014]
[1757006523081,0.001,4323.3,4323.2,3.0472014]
[1757006523289,0.001,4323.3,4323.2,4.32053788]
[1757006523689,0.001,4323.3,4323.2,4.82816889]
[1757006523886,0.001,4323.3,4323.2,7.80503788]
[1757006524086,1.729,4323.8,4323.6,2.3128874]
[1757006524289,1.729,4323.8,4323.5,2.31292197]
[1757006524290,0.116,4323.7,4323.5,2.31292197]
[1757006524795,0.099,4323.6,4323.5,2.31292197]
[1757006526668,0.116,4323.7,4323.6,2.3128874]
[1757006527082,0.215,4323.7,4323.6,2.3128874]
[1757006528966,0.116,4323.7,4323.6,3.0619874]
[1757006529294,0.116,4323.7,4323.6,2.3128874]
[1757006529485,0.215,4323.7,4323.6,2.3128874]
[1757006529675,0.684,4323.7,4323.5,2.31293322]
[1757006529872,0.116,4323.7,4323.6,2.6226874]
[1757006530088,0.116,4323.7,4323.6,3.0619874]
[1757006530977,1.729,4323.8,4323.7,2.31283391]
[1757006531183,0.025,4323.8,4323.7,3.51823391]
[1757006531378,0.025,4323.8,4323.7,5.03309094]
[1757006532402,0.025,4323.8,4323.7,4.57679094]
[1757006532574,0.124,4323.8,4323.7,2.31283391]
[1757006532775,0.24,4323.8,4323.7,2.31283391]
[1757006533880,0.709,4323.8,4323.7,2.31283391]
[1757006534693,0.241,4323.8,4323.7,2.31283391]
[1757006537412,0.142,4323.8,4323.7,2.31283391]
[1757006537729,0.4345,4323.8,4323.7,2.31283391]
[1757006538878,0.9831,4323.8,4323.2,6.2]
[1757006539082,1.704,4323.7,4323.6,2.3128874]
[1757006539283,1.9944,4323.7,4323.5,2.31292638]
[1757006539583,3.892,4323.6,4323.5,2.31292638]
[1757006539805,4.008,4323.6,4323.5,2.62272638]
[1757006540336,4.008,4323.6,4323.4,2.31298065]
[1757006540528,4.2963,4323.6,4323.4,2.31298065]
[1757006540713,4.2963,4323.6,4323.5,2.3129409]
[1757006540916,4.008,4323.6,4323.5,2.3129409]
[1757006541737,4.008,4323.6,4323.5,2.6227409]
[1757006541906,4.008,4323.6,4323.5,3.0620409]
[1757006542442,4.008,4323.6,4323.5,2.6227409]
[1757006542732,4.008,4323.6,4323.5,2.3129409]
[1757006543448,4.008,4323.6,4323.5,3.0620409]
[1757006543637,4.006,4323.6,4323.5,3.5183409]
[1757006544144,4.006,4323.6,4323.5,3.0620409]
[1757006545139,4.006,4323.6,4323.5,3.5183409]
[1757006545638,4.006,4323.6,4323.5,3.0620409]
[1757006546015,4.006,4323.6,4323.5,3.5183409]
[1757006546510,0.116,4323.6,4323.5,3.5183409]
[1757006546709,4.005,4323.6,4323.5,3.5183409]
[1757006546911,1.82,4323.7,4323.6,2.3128874]
[1757006547110,5.709,4323.7,4323.6,3.2084874]
[1757006547313,5.709,4323.7,4323.6,3.5182874]
[1757006550351,5.709,4323.7,4323.6,3.0619874]
[1757006550546,5.709,4323.7,4323.6,2.3128874]
[1757006550740,5.808,4323.7,4323.6,2.3128874]
[1757006551332,5.709,4323.7,4323.6,2.3128874]
[1757006551650,5.709,4323.7,4323.6,3.0659874]
[1757006552752,0.001,4324.3,4324.2,2.31256648]
[1757006552934,0.001,4324.3,4324.2,13.1191828]
[1757006553129,0.001,4324.3,4324.2,20.50345714]
[1757006553322,0.001,4324.3,4324.2,9.51745694]
[1757006553523,0.001,4324.3,4324.2,10.41305694]
[1757006553725,0.001,4324.3,4324.2,17.3015476]
[1757006554321,0.001,4324.3,4324.2,26.46745557]
[1757006558840,0.001,4324.3,4324.2,26.46845557]
[1757006559064,0.001,4324.3,4324.2,26.46745557]
[1757006563440,0.001,4324.3,4324.2,22.68545557]
[1757006563672,0.001,4324.3,4324.2,26.12515557]
[1757006564445,0.001,4324.3,4324.2,26.59435557]
[1757006564639,0.1,4324.3,4324.2,18.48756491]
[1757006564841,0.001,4324.3,4324.2,25.37605557]
[1757006565137,0.001,4324.3,4324.2,23.1081476]
[1757006565343,0.1017,4324.3,4324.2,12.32365694]
[1757006565554,0.1017,4324.3,4324.2,23.1081476]
[1757006565750,0.001,4324.3,4324.2,23.1081476]
[1757006566567,0.5569,4324.3,4324.2,13.0121476]
[1757006566768,0.5569,4324.3,4324.2,16.9101476]
[1757006567381,0.5569,4324.3,4324.2,13.0121476]
[1757006567581,0.5569,4324.3,4324.2,16.9101476]
[1757006567880,0.1017,4324.3,4324.2,16.9101476]
[1757006568045,0.1017,4324.3,4324.2,16.09905714]
[1757006568856,0.1017,4324.3,4324.2,12.20105714]
[1757006569060,0.1017,4324.3,4324.2,16.09705714]
[1757006569485,0.1017,4324.3,4324.2,15.05497771]
[1757006569986,0.1017,4324.3,4324.2,16.78207142]
[1757006570282,0.001,4324.3,4324.2,17.23767142]
[1757006570452,0.001,4324.3,4324.2,22.98207142]
[1757006571882,0.001,4324.3,4324.2,22.69397142]
[1757006572852,0.1,4324.3,4324.2,22.69597142]
[1757006573550,0.1,4324.3,4324.2,18.79797142]
[1757006573752,0.001,4324.3,4324.2,23.43867142]
[1757006574571,0.001,4324.3,4324.2,27.64867141]
[1757006575383,0.001,4324.3,4324.2,27.30907141]
[1757006576193,0.001,4324.3,4324.2,27.76467141]
[1757006581028,0.1,4324.3,4324.2,27.02097141]
[1757006581188,0.1,4324.3,4324.2,19.3819777]
[1757006581388,0.1,4324.3,4324.2,8.15897771]
[1757006581389,0.5552,4324.3,4324.2,8.15897771]
[1757006581979,0.1,4324.3,4324.2,12.05097771]
[1757006583708,0.1,4324.3,4324.2,12.04997771]
[1757006584524,0.1,4324.3,4324.2,8.15897771]
[1757006584731,0.1,4324.3,4324.2,12.04997771]
[1757006584933,0.1,4324.3,4323.8,0.12]
[1757006584934,0.5552,4324.3,4323.8,0.12]
[1757006585102,0.5552,4324.3,4323.8,0.004]
[1757006585103,0.29444137,4324.2,4323.8,0.004]
[1757006585301,0.116,4323.9,4323.8,0.004]
[1757006585546,0.23994137,4323.9,4323.8,0.004]
[1757006585747,3.2773683,4323.9,4323.8,0.004]
[1757006586536,0.96464137,4323.9,4323.8,0.004]
[1757006586936,3.2773683,4323.9,4323.8,0.004]
[1757006587114,3.95927257,4323.9,4323.8,0.004]
[1757006587534,3.54172965,4324.1,4323.8,5.85041123]
[1757006587535,1.68430526,4324.1,4323.8,5.85041123]
[1757006587707,1.705,4324.3,4323.8,5.85041123]
[1757006587907,0.099,4323.9,4323.8,0.004]
[1757006588331,0.5542,4323.9,4323.8,0.004]
[1757006588722,0.099,4323.9,4323.8,0.004]
[1757006588921,0.5531,4323.9,4323.8,0.004]
[1757006591719,4.47162796,4324.3,4323.8,5.85041123]
[1757006591920,1.705,4324.3,4324.1,5.84641123]
[1757006592116,3.894,4324.2,4324.1,5.84641123]
[1757006592343,3.994,4324.2,4323.8,8.16318833]
[1757006592748,0.099,4324.2,4323.8,5.85041123]
[1757006592932,3.894,4324.1,4323.8,5.85041123]
[1757006593131,3.894,4324.1,4323.8,14.36318871]
[1757006593322,3.894,4324.1,4323.8,8.16318871]
[1757006593721,0.1007,4323.9,4323.8,5.85041123]
[1757006593918,0.1007,4323.9,4323.8,8.16319165]
[1757006594220,0.1007,4323.9,4323.8,5.85041123]
[1757006595522,0.1007,4323.9,4323.8,0.004]
[1757006597651,0.2167,4323.9,4323.8,0.004]
[1757006598151,0.116,4323.9,4323.8,2.31678042]
[1757006598355,0.116,4323.9,4323.8,3.05068042]
[1757006599756,0.116,4323.9,4323.8,9.36419165]
[1757006599954,1.705,4324.3,4324.2,2.31256648]
[1757006599955,0.001,4324.3,4324.2,2.31256648]
[1757006600257,0.001,4324.3,4324.2,9.35997771]
[1757006600646,0.001,4324.3,4324.2,8.46057771]
[1757006600842,0.1,4324.3,4323.8,4.32999999]
[1757006601043,0.5541,4324.3,4324.1,2.31261479]
[1757006601257,3.992,4324.3,4324.2,2.31256648]
[1757006601651,3.893,4324.3,4324.2,8.15897771]
[1757006602051,4.009,4324.3,4324.2,8.15897771]
[1757006602354,3.893,4324.3,4324.2,9.35997771]
[1757006602559,3.893,4324.3,4324.2,10.52724283]
[1757006602761,0.001,4324.3,4324.2,14.73724282]
[1757006602975,0.001,4324.3,4324.2,17.85324282]
[1757006603335,0.001,4324.3,4324.2,22.44142026]
[1757006604244,0.001,4324.3,4324.2,28.64142026]
[1757006606761,0.001,4324.3,4324.2,18.90200903]
[1757006606944,0.001,4324.3,4324.2,28.64042026]
[1757006607747,0.001,4324.3,4324.2,28.17332026]
[1757006608576,0.001,4324.3,4324.2,28.64042026]
[1757006608966,0.001,4324.3,4324.2,24.74842026]
[1757006609170,0.001,4324.3,4324.2,28.63842026]
[1757006615580,0.001,4324.3,4324.2,28.17132026]
[1757006615783,0.001,4324.3,4324.2,24.42842027]
[1757006616669,0.026,4324.8,4324.2,27.96226502]
[1757006616870,0.025,4325.8,4325.7,2.31176456]
[1757006617072,0.025,4325.8,4325.7,11.27337579]
[1757006617366,0.025,4325.8,4325.7,22.09627579]
[1757006617683,0.025,4325.8,4325.7,22.95147579]
[1757006617884,0.025,4325.8,4325.7,21.33038376]
[1757006618066,0.025,4325.8,4325.7,25.22038376]
[1757006618602,0.025,4325.8,4325.7,15.01687253]
[1757006618881,0.025,4325.8,4325.7,24.32098376]
[1757006619068,0.025,4325.8,4325.7,24.01838376]
[1757006619278,0.025,4325.8,4325.7,24.32958376]
[1757006619574,0.025,4325.8,4325.7,24.01838376]
[1757006619776,0.025,4325.8,4325.7,24.32958376]
[1757006619973,0.025,4325.8,4325.7,24.79738376]
[1757006620182,0.025,4325.8,4325.7,18.17197253]
[1757006620375,0.025,4325.8,4325.7,21.75047579]
[1757006620575,0.025,4325.8,4325.7,22.41427579]
[1757006620882,0.025,4325.8,4325.7,11.62696456]
[1757006621057,0.124,4325.8,4325.7,12.51596456]
[1757006621258,0.124,4325.8,4325.7,18.36237579]
[1757006621988,0.124,4325.8,4325.7,21.21210037]
[1757006621989,0.025,4325.8,4325.7,21.21210037]
[1757006622305,0.025,4326.8,4326.7,2.31123026]
[1757006622514,0.025,4326.8,4326.7,15.04664149]
[1757006622808,0.025,4326.8,4326.7,15.94484149]
[1757006623114,0.025,4326.8,4326.7,16.40214149]
[1757006623266,0.025,4326.8,4326.7,17.92740664]
[1757006623798,0.025,4326.8,4326.7,17.46730664]
[1757006624017,0.025,4326.8,4326.7,14.03440664]
[1757006624307,0.025,4326.8,4326.7,24.13840664]
[1757006625066,0.025,4326.8,4326.7,18.83414149]
[1757006625669,0.025,4326.8,4326.7,18.37684149]
[1757006626169,0.125,4326.8,4326.7,8.62643026]
[1757006626381,0.125,4326.8,4326.7,14.47284149]
[1757006626708,0.125,4326.8,4326.6,0.5725]
[1757006626709,0.125,4326.8,4326.6,5.84641123]
[1757006626870,0.5823,4326.8,4326.6,5.84641123]
[1757006627071,0.5823,4326.8,4326.7,2.31123026]
[1757006627410,0.4573,4326.7,4326.4,0.4573]
[1757006627597,0.7285,4326.7,4326.2,2.42664535]
[1757006627792,0.2402,4326.8,4326.2,0.1152]
[1757006627793,0.1007,4326.3,4326.2,0.1152]
[1757006628023,0.1007,4326.3,4326.2,2.42669738]
[1757006628293,0.1024,4326.3,4326.2,2.42669738]
[1757006629035,0.4573,4326.6,4326.2,0.1152]
[1757006629193,0.1412,4326.8,4326.5,8.15771518]
[1757006629399,0.026,4326.8,4326.7,2.62243026]
[1757006629794,0.026,4326.8,4326.7,2.31123026]
[1757006631542,0.125,4326.8,4326.7,2.31123026]